Workbook

Sheet титульный лист
BE3: УТВЕРЖДАЮ
BE4: Директор
BE5: (наименование должности лица, утверждающего документ)
BZ6: Д.В. Шевченко
BE7: (подпись) | BZ7: (расшифровка подписи)
BG8: " | BH8: 27 | BL8: " | BO8: февраля | CD8: 20 | CH8: 24 | CK8: г.
A10: План
A11: финансово-хозяйственной деятельности на 2024 год
A12: (на 2024 год и плановый период 2025 и 2026 годов)<1>
AM14: " | AN14: 27 | AR14: " | AU14: февраля | BJ14: 20 | BN14: 24 | BQ14: г. | BT14: <2>
CO18: КОДЫ
CB19: Дата | CO19: 27.02.2024
A20: Наименование учреждения | AC20: Государственное автономное образовательное учреждение Мурманской области "Полярнозоринский энергетический колледж" | BT20: по Сводному реестру | CO20: 472Ц8191
CB21: глава по БК | CO21: 804
A22: Орган, осуществляющий функции и полномочия учредителя | AC22: Министерство образования и науки Мурманской облати | BT22: по Сводному реестру | CO22: 47200021
CB23: ИНН | CO23: 5102006924
A24: Единица измерения: рубли | CB24: КПП | CO24: 510201001
CB25: по ОКЕИ | CO25: 383
A26: Юридический адрес учреждения: 184230, Мурманская обл., г. Полярные Зори, ул. Курчатова, д. 24
A27: Адрес фактического местонахождения учреждения: 184230, Мурманская обл., г. Полярные Зори, ул. Курчатова, д. 24
A32: <1> Указывается финансовый год,если закон об областном бюджете утверждается на один финансовый год, либо финансовый год и плановый период, если закон об областном бюджете утверждается на очередной финансовый год и плановый период
A33: <2> Указывается дата подписания Плана, а в случае утверждения Плана уполномоченным лицом учреждения - дата утверждения Плана.

Sheet Раздел 1
A1: Раздел 1. Поступления и выплаты
A3: Наименование показателя | B3: Код строки | C3: Код по БК РФ <3>
D4: на 2024 г. текущий финансовый год | E4: на 2025 г. (1-й год планового периода) | F4: на 2026 г. (2-й год планового периода) | G4: за пределами планового периода
A5: 1 | B5: 2 | C5: 3 | D5: 4 | E5: 5 | F5: 6 | G5: 7
A6: Остаток средств на начало текущего финансового года <4> | B6: 0001 | C6: x | D6: 2,000,000.00 | E6: 0.00 | F6: 0.00
A7: Остаток средств на конец текущего финансового года <4> | B7: 0002 | C7: x | D7: =D6+D8-D40+D114 -> 0.00 | E7: =E6+E8-E40+E114 -> 0.00 | F7: =F6+F8-F40+F114 -> 0.00
A8: Доходы, всего: | B8: 1000 | D8: =D11+D15+D18+D23+D26+D33 -> 226,303,388.68 | E8: =E11+E15+E18+E23+E26+E33 -> 226,303,388.68 | F8: =F11+F15+F18+F23+F26+F33 -> 226,303,388.68
A9: в том числе:
A11: доходы от собственности, всего | B11: 1100 | C11: 120 | D11: =справочно!D12 -> 797,004.18 | E11: =D11 -> 797,004.18 | F11: =D11 -> 797,004.18
A12: в том числе: | B12: 1110 | C12: 120 | D12: =D11 -> 797,004.18 | E12: =D12 -> 797,004.18 | F12: =D12 -> 797,004.18
A14: доходы от оказания услуг, работ, компенсации затрат учреждений, всего | B14: 1200 | C14: 130 | D14: =D15+D18 -> 89,838,250.15 | E14: =D14 -> 89,838,250.15 | F14: =D14 -> 89,838,250.15
A15: в том числе: | B15: 1210 | C15: 130 | D15: =справочно!E14 -> 87,575,200.00 | E15: =D15 -> 87,575,200.00 | F15: =E15 -> 87,575,200.00
A16: субсидии на финансовое обеспечение выполнения государственного (муниципального) задания за счет средств бюджета публично-правового образования, создавшего учреждение
A17: субсидии на финансовое обеспечение выполнения государственного задания за счет средств бюджета Федерального фонда обязательного медицинского страхования | B17: 1220 | C17: 130 | D17: 0.00 | E17: 0.00 | F17: 0.00
A18: поступления от оказания услуг (выполнения работ) на платной основе и от иной приносящей доход деятельности | B18: 1230 | C18: 130 | D18: =справочно!H14 -> 2,263,050.15 | E18: =D18 -> 2,263,050.15 | F18: =D18 -> 2,263,050.15
A19: из них: | B19: 1231 | C19: 130 | D19: 0.00 | E19: 0.00 | F19: 0.00
A20: государственные услуги
A21: дополнительные платные услуги | B21: 1232 | C21: 130 | D21: =D18 -> 2,263,050.15 | E21: =D21 -> 2,263,050.15 | F21: =D21 -> 2,263,050.15
A22: прочие поступления | B22: 1233 | C22: 130 | D22: 0.00 | E22: 0.00 | F22: 0.00
A23: доходы от штрафов, пеней, иных сумм принудительного изъятия, всего | B23: 1300 | C23: 140 | D23: =D24 -> 0.00 | E23: =D23 -> 0.00 | F23: =E23 -> 0.00
A24: в том числе: | B24: 1310 | C24: 140 | D24: =справочно!D19 -> 0.00 | E24: =D24 -> 0.00 | F24: =E24 -> 0.00
A26: безвозмездные денежные поступления, всего | B26: 1400 | C26: 150 | D26: =D27+D29 -> 135,389,820.35 | E26: =E27 -> 135,389,820.35 | F26: =F27 -> 135,389,820.35
A27: в том числе: | B27: 1410 | C27: 150 | D27: =справочно!D22 -> 135,389,820.35 | E27: =D27 -> 135,389,820.35 | F27: =E27 -> 135,389,820.35
A28: целевые субсидии
A29: субсидии на осуществление капитальных вложений | B29: 1420 | C29: 150 | D29: 0.00 | E29: 0.00 | F29: 0.00
A30: прочие доходы, всего | B30: 1500 | C30: 180 | D30: 0.00 | E30: 0.00 | F30: 0.00
A31: в том числе:
A33: доходы от операций с активами, всего | B33: 1900 | C33: 440 | D33: =справочно!D40 -> 278,314.00 | E33: 278,314.00 | F33: =D33 -> 278,314.00
A34: в том числе:
A36: прочие поступления, всего <5> | B36: 1980 | C36: x | D36: 0.00 | E36: 0.00 | F36: 0.00
A37: из них:
A38: увеличение остатков денежных средств за счет возврата дебиторской задолженности прошлых лет | B38: 1981 | C38: 510 | D38: 0.00 | E38: 0.00 | F38: 0.00 | G38: x
A40: Расходы, всего | B40: 2000 | C40: x | D40: =D41+D57+D66+D71+D79+D81+D109+D113 -> 228,256,649.68 | E40: =E41+E57+E66+E71+E79+E81+E109+E113 -> 226,256,649.68 | F40: =F41+F57+F66+F71+F79+F81+F109+F1130 -> 226,256,649.68
A41: в том числе: | B41: 2100 | C41: x | D41: =D43+D45+D46+D47 -> 72,614,922.53 | E41: =E43+E45+E46+E47 -> 72,614,922.53 | F41: =E41 -> 72,614,922.53 | G41: x
A42: на выплаты персоналу, всего
A43: в том числе: | B43: 2110 | C43: 111 | D43: =справочно!D47 -> 54,377,416.63 | E43: =D43 -> 54,377,416.63 | F43: =E43 -> 54,377,416.63 | G43: x
A44: оплата труда
A45: прочие выплаты персоналу, в том числе компенсационного характера | B45: 2120 | C45: 112 | D45: =справочно!D48 -> 1,191,516.90 | E45: =D45 -> 1,191,516.90 | F45: =D45 -> 1,191,516.90 | G45: x
A46: иные выплаты, за исключением фонда оплаты труда учреждения, для выполнения отдельных полномочий | B46: 2130 | C46: 113 | D46: =справочно!D49 -> 24,762.00 | E46: =D46 -> 24,762.00 | F46: =D46 -> 24,762.00 | G46: x
A47: взносы по обязательному социальному страхованию на выплаты по оплате труда работников и иные выплаты работникам учреждений, всего | B47: 2140 | C47: 119 | D47: =справочно!D50 -> 17,021,227.00 | E47: =D47 -> 17,021,227.00 | F47: =E47 -> 17,021,227.00 | G47: x
A48: в том числе: | B48: 2141 | C48: 119 | D48: =(справочно!D51) -> 17,021,227.00 | E48: =E47 -> 17,021,227.00 | F48: =E48 -> 17,021,227.00 | G48: x
A49: на выплаты по оплате труда
A50: на иные выплаты работникам | B50: 2142 | C50: 119 | G50: x
A51: денежное довольствие военнослужащих и сотрудников, имеющих специальные звания | B51: 2150 | C51: 131 | D51: 0.00 | E51: 0.00 | F51: 0.00 | G51: x
A52: расходы на выплаты военнослужащим и сотрудникам, имеющим специальные звания, зависящие от размера денежного довольствия | B52: 2160 | C52: 133 | D52: 0.00 | E52: 0.00 | F52: 0.00
A53: иные выплаты военнослужащим и сотрудникам, имеющим специальные звания | B53: 2170 | C53: 134 | D53: 0.00 | E53: 0.00 | F53: 0.00 | G53: x
A54: страховые взносы на обязательное социальное страхование в части выплат персоналу, подлежащих обложению страховыми взносами | B54: 2180 | C54: 139 | D54: 0.00 | E54: 0.00 | F54: 0.00 | G54: x
A55: в том числе: | B55: 2181 | C55: 139 | D55: 0.00 | E55: 0.00 | F55: 0.00 | G55: x
A56: на оплату труда стажеров
A57: социальные и иные выплаты населению, всего | B57: 2200 | C57: 300 | D57: =справочно!D58 -> 12,702,700.00 | E57: =D57 -> 12,702,700.00 | F57: =D57 -> 12,702,700.00 | G57: x
A58: в том числе: | B58: 2210 | C58: 320 | D58: =D60+D62 -> 6,521,700.00 | E58: =D58 -> 6,521,700.00 | F58: =D58 -> 6,521,700.00 | G58: x
A59: социальные выплаты гражданам, кроме публичных нормативных социальных выплат
A60: из них: | B60: 2211 | C60: 321 | D60: =справочно!D60 -> 2,237,439.00 | E60: =D60 -> 2,237,439.00 | F60: =D60 -> 2,237,439.00 | G60: x
A61: пособия, компенсации и иные социальные выплаты гражданам, кроме публичных нормативных обязательств
A62: приобретение товаров, работ, услуг в пользу граждан в целях их социального обеспечения | B62: 2212 | C62: 323 | D62: =справочно!D61 -> 4,284,261.00 | E62: =D62 -> 4,284,261.00 | F62: =D62 -> 4,284,261.00 | G62: x
A63: выплата стипендий, осуществление иных расходов на социальную поддержку обучающихся за счет средств стипендиального фонда | B63: 2220 | C63: 340 | D63: =справочно!D62 -> 6,181,000.00 | E63: =D63 -> 6,181,000.00 | F63: =D63 -> 6,181,000.00 | G63: x
A64: на премирование физических лиц за достижения в области культуры, искусства, образования, науки и техники, а также на предоставление грантов с целью поддержки проектов в области науки, культуры и искусства | B64: 2230 | C64: 350 | D64: =справочно!D63 -> 0.00 | E64: =D64 -> 0.00 | F64: =D64 -> 0.00 | G64: x
A65: иные выплаты населению | B65: 2240 | C65: 360 | D65: 0.00 | E65: 0.00 | F65: 0.00 | G65: x
A66: уплата налогов, сборов и иных платежей, всего | B66: 2300 | C66: 850 | D66: =D67+D69+D70 -> 2,720,925.64 | E66: =D66 -> 2,720,925.64 | F66: =D66 -> 2,720,925.64 | G66: x
A67: в том числе: | B67: 2310 | C67: 851 | D67: =справочно!D67 -> 2,709,819.00 | E67: =D67 -> 2,709,819.00 | F67: =D67 -> 2,709,819.00 | G67: x
A68: налог на имущество организаций и земельный налог
A69: иные налоги (включаемые в состав расходов) в бюджеты бюджетной системы Российской Федерации, а также государственная пошлина | B69: 2320 | C69: 852 | D69: =справочно!D68 -> 5,410.00 | E69: =D69 -> 5,410.00 | F69: =D69 -> 5,410.00 | G69: x
A70: уплата штрафов (в том числе административных), пеней, иных платежей | B70: 2330 | C70: 853 | D70: =справочно!D69 -> 5,696.64 | E70: =D70 -> 5,696.64 | F70: =D70 -> 5,696.64 | G70: x
A71: безвозмездные перечисления организациям и физическим лицам, всего | B71: 2400 | C71: x | D71: 0.00 | E71: 0.00 | F71: 0.00 | G71: x
A72: из них: | B72: 2410 | C72: 613 | D72: 0.00 | E72: 0.00 | F72: 0.00 | G72: x
A73: гранты, предоставляемые бюджетным учреждениям
A74: гранты, предоставляемые автономным учреждениям | B74: 2420 | C74: 623 | D74: 0.00 | E74: 0.00 | F74: 0.00
A75: гранты, предоставляемые иным некоммерческим организациям (за исключением бюджетных и автомомных учреждений) | B75: 2430 | C75: 634 | D75: 0.00 | E75: 0.00 | F75: 0.00
A76: гранты, предоставляемые другим организациям и физическим лицам | B76: 2440 | C76: 810 | D76: 0.00 | E76: 0.00 | F76: 0.00
A77: взносы в международные организации | B77: 2450 | C77: 862 | D77: 0.00 | E77: 0.00 | F77: 0.00
A78: платежи в целях обеспечения реализации соглашений с правительствами иностранных государств и международными организациями | B78: 2460 | C78: 863 | D78: 0.00 | E78: 0.00 | F78: 0.00 | G78: x
A79: прочие выплаты (кроме выплат на закупку товаров, работ, услуг) | B79: 2500 | C79: x | D79: 0.00 | E79: 0.00 | F79: 0.00 | G79: x
A80: исполнение судебных актов Российской Федерации и мировых соглашений по возмещению вреда, причиненного в результате деятельности учреждения | B80: 2520 | C80: 831 | D80: 0.00 | E80: 0.00 | F80: 0.00 | G80: x
A81: расходы на закупку товаров, работ, услуг, всего <6> | B81: 2600 | C81: x | D81: =D82+D84+D85+D107+D108 -> 140,218,101.51 | E81: =E85+E108 -> 138,218,101.51 | F81: =E81 -> 138,218,101.51
A82: в том числе: | B82: 2610 | C82: 241 | D82: 0.00 | E82: 0.00 | F82: 0.00
A83: закупку научно-исследовательских и опытно-конструкторских работ
A84: закупку товаров, работ, услуг в целях капитального ремонта государственного (муниципального) имущества | B84: 2630 | C84: 243 | D84: 0.00 | E84: 0.00 | F84: 0.00
A85: прочую закупку товаров, работ и услуг, всего | B85: 2640 | C85: 244 | D85: =D86+D88+D89+D90+D91+D95+D98+D99+D100 -> 131,374,667.71 | E85: =E86+E88+E89+E90+E91+E95+E98+E99+E100 -> 129,374,667.71 | F85: =E85 -> 129,374,667.71
A86: в том числе: | B86: 2641 | C86: 244 | D86: =справочно!D87 -> 130,000.00 | E86: =D86 -> 130,000.00 | F86: =E86 -> 130,000.00
A87: услуги связи
A88: транспортные расходы | B88: 2642 | C88: 244 | D88: =справочно!D88 -> 25,000.00 | E88: =D88 -> 25,000.00 | F88: =E88 -> 25,000.00
A89: коммунальные услуги | B89: 2643 | C89: 244 | D89: =справочно!D89 -> 742,040.92 | E89: =D89 -> 742,040.92 | F89: =E89 -> 742,040.92
A90: арендная плата за пользование имуществом | B90: 2644 | C90: 244 | D90: =справочно!D90 -> 0.00 | E90: 0.00 | F90: 0.00
A91: работы, услуги по содержанию имущества, всего | B91: 2645 | C91: 244 | D91: =справочно!D91 -> 17,993,931.93 | E91: =D91 -> 17,993,931.93 | F91: =D91 -> 17,993,931.93
A92: в том числе:
A93: текущий ремонт движимого имущества
A94: текущий ремонт недвижимого имущества
A95: прочие работы, услуги, всего | B95: 2646 | C95: 244 | D95: =справочно!D92 -> 5,017,844.35 | E95: =D95 -> 5,017,844.35 | F95: =D95 -> 5,017,844.35
A96: в том числе:
A97: организация питания
A98: страхование | B98: 2647 | C98: 244 | D98: =справочно!D93 -> 21,037.30 | E98: =D98 -> 21,037.30 | F98: =D98 -> 21,037.30
A99: увеличение стоимости основных средств | B99: 2648 | C99: 244 | D99: =справочно!D94 -> 105,978,520.35 | E99: =D99-2000000 -> 103,978,520.35 | F99: =E99 -> 103,978,520.35
A100: увеличение стоимости материальных запасов, всего | B100: 2649 | C100: 244 | D100: =справочно!D95 -> 1,466,292.86 | E100: =D100 -> 1,466,292.86 | F100: =D100 -> 1,466,292.86
A101: в том числе: | D101: =23084.4 -> 23,084.40 | E101: 15,000.00 | F101: 15,000.00
A102: медикаменты и перевязочные средства
A103: горюче-смазочные материалы | D103: 120,187.25 | E103: 225,600.00 | F103: 225,600.00
A104: строительные материалы | D104: 225,806.83 | E104: 300,000.00 | F104: 300,000.00
A105: мягкий инвентарь | D105: 121,632.00 | E105: 1,000.00 | F105: 1,000.00
A106: прочие материальные запасы | D106: 1,273,985.25 | E106: 2,598,400.00 | F106: 2,598,400.00
A107: закупку товаров, работ, услуг в целях создания, развития, эксплуатации и вывода из эксплуатации государственных информационных систем | B107: 2650 | C107: 246 | D107: 0.00 | E107: 0.00 | F107: 0.00
A108: закупку энергетических ресурсов | B108: 2660 | C108: 247 | D108: =справочно!D99 -> 8,843,433.80 | E108: =D108 -> 8,843,433.80 | F108: =D108 -> 8,843,433.80
A109: капитальные вложения в объекты государственной (муниципальной) собственности, всего | B109: 2700 | C109: 400 | D109: 0.00 | E109: 0.00 | F109: 0.00
A110: в том числе: | B110: 2710 | C110: 406 | D110: 0.00 | E110: 0.00 | F110: 0.00
A111: приобретение объектов недвижимого имущества государственными (муниципальными) учреждениями
A112: строительство (реконструкция) объектов недвижимого имущества государственными (муниципальными) учреждениями | B112: 2720 | C112: 407 | D112: 0.00 | E112: 0.00 | F112: 0.00
A113: специальные расходы | B113: 2800 | C113: 880 | D113: 0.00 | E113: 0.00 | F113: 0.00
A114: Выплаты, уменьшающие доход, всего <7> | B114: 3000 | C114: 100 | D114: =D115 -> -46,739.00 | E114: =D114 -> -46,739.00 | F114: =D114 -> -46,739.00 | G114: x
A115: в том числе: | B115: 3010 | D115: -46,739.00 | E115: =D115 -> -46,739.00 | F115: =D115 -> -46,739.00 | G115: x
A116: налог на прибыль
A117: налог на добавленную стоимость | B117: 3020 | D117: 0.00 | E117: 0.00 | F117: 0.00 | G117: x
A118: прочие налоги, уменьшающие доход | B118: 3030 | D118: 0.00 | E118: 0.00 | F118: 0.00 | G118: x
A119: Прочие выплаты, всего <8> | B119: 4000 | C119: x | D119: 0.00 | E119: 0.00 | F119: 0.00 | G119: x
A120: из них: | B120: 4010 | C120: 610 | D120: 0.00 | E120: 0.00 | F120: 0.00 | G120: x
A121: возврат в бюджет средств субсидии
A123: --------------------------------
A124: <3> В графе 3 отражаются: по строкам 1100 - 1900 - коды аналитической группы подвида доходов бюджетов классификации доходов бюджетов; по строкам 1980 - 1990 - коды аналитической группы вида источников финансирования дефицитов бюджетов классификации источников финансирования дефицитов бюджетов; по строкам 2000 - 2800 - коды видов расходов бюджетов классификации расходов бюджетов; по строкам 3000 - 3030 - коды аналитической группы подвида доходов бюджетов классификации доходов бюджетов, по которым планируется уплата налогов, уменьшающих доход (в том числе налог на прибыль, налог на добавленную стоимость, единый налог на вмененный доход для отдельных видов деятельности); по строкам 4000 - 4040 - коды аналитической группы вида источников финансирования дефицитов бюджетов классификации источников финансирования дефицитов бюджетов.
A125: <4> По строкам 0001 и 0002 указываются планируемые суммы остатков средств на начало и на конец планируемого года, если указанные показатели по решению органа, осуществляющего функции и полномочия учредителя, планируются на этапе формирования проекта Плана либо указываются фактические остатки средств при внесении изменений в утвержденный План после завершения отчетного финансового года.
A126: <5> Показатели прочих поступлений включают в себя в том числе показатели увеличения денежных средств за счет возврата дебиторской задолженности прошлых лет, включая возврат предоставленных займов (микрозаймов), а также за счет возврата средств, размещенных на банковских депозитах. При формировании Плана (проекта Плана) обособленному(ым) подразделению(ям) показатель прочих поступлений включает показатель поступлений в рамках расчетов между головным учреждением и обособленным подразделением.
A127: <6> Показатели выплат по расходам на закупки товаров, работ, услуг, отраженные в строке 2600 раздела 1 "Поступления и выплаты" Плана, подлежат детализации в разделе 2 "Сведения по выплатам на закупку товаров, работ, услуг" Плана.
A128: <7> Показатель отражается со знаком "минус".
A129: <8> Показатели прочих выплат включают в себя в том числе показатели уменьшения денежных средств за счет возврата средств субсидий, предоставленных до начала текущего финансового года, предоставления займов (микрозаймов), размещения автономными учреждениями денежных средств на банковских депозитах. При формировании Плана (проекта Плана) обособленному(ым) подразделению(ям) показатель прочих выплат включает показатель поступлений в рамках расчетов между головным учреждением и обособленным подразделением

Sheet справочно
A1: Справочно к разделу 1. Поступления и выплаты
A2: на 2024 текущий финансовый год
A4: Наименование показателя | B4: Код строки | C4: Код по бюджетной классификации Российской Федерации | D4: Сумма, руб. ( с точностью до двух знаков после запятой. 0,00)
D5: Всего | E5: Субсидии на финансовое обеспечение выполнения государственного (муниципального) задания | F5: Субсидии, предоставляемые в соответствии с абзацем вторым пункта 1 статьи 78.1 БК РФ | G5: Субсидии на осуществление капитальных вложений | H5: Поступления от оказания услуг (выполнения работ) на платной основе и от иной приносящей доход деятельности
H6: Всего | I6: в том числе гранты
A7: 1 | B7: 2 | C7: 3 | D7: 4 | E7: 5 | F7: 6 | G7: 7 | H7: 8 | I7: 9
A8: Остаток средств на начало текущего финансового года | C8: х | D8: =SUM(D10) -> 2,000,000.00 | E8: 0.00 | F8: 0.00 | G8: 0.00 | H8: 2,000,000.00 | I8: 2,000,000.00
A9: в том числе:
A10: внебюджетные источники | C10: 131 | D10: =H10 -> 2,000,000.00 | H10: 2,000,000.00 | I10: 2,000,000.00
A11: Доходы, всего: | B11: 1000 | C11: х | D11: =SUM(E11:H11) -> 226,303,388.68 | E11: =SUM(E12+E14+E19+E22+E36+E39+E42) -> 87,575,200.00 | F11: =SUM(F24) -> 32,357,700.00 | H11: =SUM(H12+H14+H19+H22+H40+H44) -> 106,370,488.68 | I11: =SUM(I12+I14+I19+I22+I36+I39+I42) -> 103,032,120.35
A12: в том числе: доходы от собственности, всего | B12: 1100 | C12: 120 | D12: =SUM(E12:H12) -> 797,004.18 | E12: =SUM(E13) -> 0.00 | F12: =SUM(F13) -> 0.00 | H12: =SUM(H13) -> 797,004.18
A13: в т.ч. внебюджетные источники | B13: 1101 | C13: 121 | D13: =SUM(E13:H13) -> 797,004.18 | H13: 797,004.18
A14: доходы от оказания услуг, работ, компенсации затрат учреждений, всего | B14: 1200 | C14: 130 | D14: =SUM(E14:H14) -> 89,838,250.15 | E14: =SUM(E15) -> 87,575,200.00 | F14: =SUM(F15:F16) -> 0.00 | H14: =SUM(H16:H18) -> 2,263,050.15
A15: в том числе: субсидии на финансовое обеспечение выполнения государственного (муниципального) задания за счет средств бюджета публично-правового образования, создавшего учреждение | B15: 1201 | C15: 131 | D15: =SUM(E15:H15) -> 87,575,200.00 | E15: 87,575,200.00
A16: внебюджетные источники | B16: 1210 | C16: 131 | D16: 1,547,374.09 | H16: =631183.8+909350.53+6839.76 -> 1,547,374.09
A17: внебюджетные источники | B17: 1211 | C17: 134 | D17: 0.00 | H17: 0.00
A18: внебюджетные источники | B18: 1212 | C18: 135 | D18: 715,676.06 | H18: 715,676.06
A19: доходы от штрафов, пеней, иных сумм принудительного изъятия, всего | B19: 1300 | C19: 140 | D19: 0.00 | H19: =SUM(H21) -> 0.00
A20: в том числе: | D20: 0.00
A21: внебюджетные источники | B21: 1301 | C21: 141 | D21: 0.00 | H21: 0.00
A22: безвозмездные денежные поступления, всего | B22: 1400 | C22: 150 | D22: =SUM(D24) -> 135,389,820.35 | E22: =SUM(E24) -> 0.00 | F22: =SUM(F24) -> 32,357,700.00 | G22: =SUM(G24) -> 0.00 | H22: =SUM(H24:H35) -> 103,032,120.35 | I22: =I33+I34+I35 -> 103,032,120.35
A23: в том числе: | D23: 0.00
A24: субсидии на иные цели | C24: 152 | D24: =SUM(D25:D35) -> 135,389,820.35 | F24: =SUM(F25:F35) -> 32,357,700.00
A25: Выплата стипендии обучающимся по очной форме обучения в профессиональных образовательных организациях | C25: 152 | D25: 6,147,400.00 | F25: 6,147,400.00
A26: Предоставление бесплатного питания отдельным категориям обучающихся учреждений среднего профессионального образования | C26: 152 | D26: =SUM(E26:H26) -> 2,040,200.00 | F26: 2,040,200.00
A27: Выплата ежемесячного денежного вознаграждения за классное руководство (кураторство) педагогическим работникам государственных образовательных организаций, реализующих образовательные программы среднего профессионального образования, в том числе программы профессионального обучения для лиц с ограниченными возможностями здоровья (ОБ) | C27: 152 | D27: =F27 -> 140,600.00 | F27: 140,600.00
A28: Оказание государственной поддержки развития образовательно-производственных центров (кластеров) и образовательных кластеров среднего профессионального образования на основе интеграции образовательных организаций, действующих в региональном секторе экономики, в рамках федерального проекта "Профессионалитет" | C28: 152 | D28: =F28 -> 15,000,000.00 | F28: 15,000,000.00
A29: Обеспечение комплексной безопасности государственных учреждений, подведомственных Министерству образования и науки Мурманской области | C29: 152 | D29: 525,500.00 | F29: 525,500.00
A30: Оплата стоимости проезда и провоза багажа к месту использования отпуска (отдыха) и обратно | C30: 152 | D30: 928,900.00 | F30: 928,900.00
A31: Содержание детей-сирот, детей, оставшихся без попечения родителей, лиц из их числа в государственных автономных профессиональных образовательных учреждениях Мурманской области | C31: 152 | D31: 4,481,500.00 | F31: 4,481,500.00
A32: Выплата ежемесячного денежного вознаграждения за классное руководство (кураторство) педагогическим работникам государственных образовательных организаций, реализующих образовательные программы среднего профессионального образования, в том числе программы профессионального обучения для лиц с ограниченными возможностями здоровья (ФБ) | C32: 152 | D32: =F32 -> 3,093,600.00 | F32: =3093600 -> 3,093,600.00
A33: Государственная поддержка развития образовательно-производственных центров (кластеров), создаваемых на основе интеграции образовательных организаций, реализующих программы среднего профессионального образования, и организаций, действующих в реальном секторе экономики (ФБ) | C33: 152 | D33: =H33 -> 100,000,000.00 | H33: 100,000,000.00 | I33: =H33 -> 100,000,000.00
A34: Безвозмездное (целевое) финансирование на приобретение оборудования для оснащения лабораторий и мастерских | C34: 152 | D34: =H34 -> 2,998,520.35 | H34: 2,998,520.35 | I34: =H34 -> 2,998,520.35
A35: Стипендия Правительства РФ | C35: 152 | D35: =SUM(E35:H35) -> 33,600.00 | H35: 33,600.00 | I35: =H35 -> 33,600.00
A36: прочие доходы, всего | B36: 1500 | D36: 0.00
A37: в том числе: | C37: 180 | D37: 0.00
D38: 0.00
A39: доходы от операций с активами, всего | B39: 1900 | D39: 0.00
A40: в том числе: | C40: 440 | D40: 278,314.00 | H40: 278,314.00
D41: 0.00
A42: прочие поступления, всего | B42: 1980 | D42: 0.00
A43: в том числе: | D43: 0.00
A44: обеспечение контрактов | C44: 510 | D44: 0.00 | H44: 0.00
A45: Расходы, всего | B45: 2000 | C45: х | D45: =SUM(E45:H45) -> 228,256,649.68 | E45: =SUM(E46+E58+E65+E85+E99) -> 87,575,200.00 | F45: =SUM(F46+F58+F65+F82) -> 32,357,700.00 | H45: =SUM(H46+H58+H65+H85+H99) -> 108,323,749.68 | I45: =SUM(I46+I50+I58+I65+I85) -> 105,032,120.35
A46: в том числе: на выплаты персоналу, всего | B46: 2100 | C46: х | D46: =SUM(D47:D50) -> 72,614,922.53 | E46: =SUM(E47:E50) -> 66,841,502.53 | F46: =SUM(F47:F50) -> 4,163,100.00 | H46: =SUM(H47:H50) -> 1,610,320.00
A47: в том числе: оплата труда | B47: 2110 | C47: 111 | D47: =SUM(E47:H47) -> 54,377,416.63 | E47: 50,708,523.63 | F47: =2397480+111413 -> 2,508,893.00 | H47: 1,160,000.00
A48: прочие выплаты персоналу, в том числе компенсационного характера | B48: 2120 | C48: 112 | D48: =SUM(E48:H48) -> 1,191,516.90 | E48: 162,616.90 | F48: 928,900.00 | H48: 100,000.00
A49: иные выплаты, за исключением фонда оплаты труда учреждения, для выполнения отдельных полномочий | B49: 2130 | C49: 113 | D49: 24,762.00 | E49: 24,762.00 | H49: 0.00
A50: взносы по обязательному социальному страхованию на выплаты по оплате труда работников и иные выплаты работникам учреждений, всего | B50: 2140 | C50: х | D50: 17,021,227.00 | E50: =SUM(E51:E57) -> 15,945,600.00 | F50: =SUM(F51:F57) -> 725,307.00 | H50: =H51 -> 350,320.00
A51: в том числе: на выплаты по оплате труда | B51: 2141 | C51: 119 | D51: 17,021,227.00 | E51: 15,945,600.00 | F51: =696120+29187 -> 725,307.00 | H51: 350,320.00
A52: на иные выплаты работникам | B52: 2142 | C52: 119 | D52: 0.00
A53: денежное довольствие военнослужащих и сотрудников, имеющих специальные звания | B53: 2150 | D53: 0.00
A54: расходы на выплаты военнослужащим и сотрудникам, имеющим специальные звания, зависящие от размера денежного довольствия | B54: 2160 | D54: 0.00
A55: иные выплаты военнослужащим и сотрудникам, имеющим специальные звания | B55: 2170 | D55: 0.00
A56: страховые взносы на обязательное социальное страхование в части выплат персоналу, подлежащих обложению страховыми взносами | B56: 2180 | D56: 0.00
A57: в том числе: на оплату труда стажеров | B57: 2181 | D57: 0.00
A58: социальные и иные выплаты населению, всего | B58: 2200 | C58: х | D58: =SUM(E58:H58) -> 12,702,700.00 | E58: =SUM(E59:E64) -> 0.00 | F58: =F59+F62+F63 -> 12,669,100.00 | H58: =SUM(H59:H64) -> 33,600.00 | I58: =SUM(I59:I64) -> 33,600.00
A59: в том числе: социальные выплаты гражданам, кроме публичных нормативных социальных выплат | B59: 2210 | D59: =D60+D61 -> 6,521,700.00 | F59: =F60+F61 -> 6,521,700.00 | H59: =H60+H61 -> 0.00
A60: из них: пособия, компенсации и иные социальные выплаты гражданам, кроме публичных нормативных обязательств | B60: 2211 | C60: 321 | D60: 2,237,439.00 | E60: 0.00 | F60: =174124+2063315 -> 2,237,439.00 | H60: 0.00
A61: приобретение товаров, работ,услуг в пользу граждан в целях их социального обеспечения | C61: 323 | D61: 4,284,261.00 | E61: 0.00 | F61: =1866076+2418185 -> 4,284,261.00 | H61: 0.00
A62: выплата стипендий, осуществление иных расходов на социальную поддержку обучающихся за счет средств стипендиального фонда | B62: 2220 | C62: 340 | D62: 6,181,000.00 | E62: 0.00 | F62: 6,147,400.00 | H62: 33,600.00 | I62: =H62 -> 33,600.00
A63: на премирование физических лиц за достижения в области культуры, искусства, образования, науки и техники, а также на предоставление грантов с целью поддержки проектов в области науки, культуры и искусства | B63: 2230 | C63: 350 | D63: 0.00 | E63: 0.00 | F63: 0.00 | H63: 0.00
A64: иные выплаты населению | B64: 2240 | D64: 0.00
A65: уплата налогов, сборов и иных платежей, всего | B65: 2300 | C65: х | D65: 2,720,925.64 | E65: =SUM(E67:E69) -> 2,637,123.00 | F65: =SUM(F67:F69) -> 0.00 | H65: =SUM(H67:H69) -> 83,802.64 | I65: =SUM(I67:I69) -> 0.00
A66: в том числе: | D66: 0.00
A67: налог на имущество организаций и земельный налог | B67: х | C67: 851 | D67: 2,709,819.00 | E67: =2394942+236771 -> 2,631,713.00 | F67: 0.00 | H67: =71313+6793 -> 78,106.00
A68: иные налоги (включаемые в состав расходов) в бюджеты бюджетной системы Российской Федерации, а также государственная пошлина | B68: х | C68: 852 | D68: 5,410.00 | E68: 5,410.00 | F68: 0.00 | H68: 0.00
A69: уплата штрафов (в том числе административных), пеней, иных платежей | B69: х | C69: 853 | D69: 5,696.64 | E69: 0.00 | F69: 0.00 | H69: =25.76+3410.56+2260.32 -> 5,696.64
A70: безвозмездные перечисления организациям и физическим лицам, всего
A71: в том числе:
A72: гранты, предоставляемые бюджетным учреждениям | B72: 2410
A73: гранты, предоставляемые автономным учреждениям | B73: 2420
A74: гранты, предоставляемые иным некоммерческим организациям (за исключением бюджетных и автономных учреждений) | B74: 2430
A75: гранты, предоставляемые другим организациям и физическим лицам | B75: 2440
A76: взносы в международные организации | B76: 2450
A77: платежи в целях обеспечения реализации соглашений с правительствами иностранных государств и международными организациями | B77: 2460
A78: прочие выплаты (кроме выплат на закупку товаров, работ, услуг) | B78: 2500 | C78: х
A79: в том числе :
A80: исполнение судебных актов Российской Федерации и мировых соглашений по возмещению вреда, причиненного в результате деятельности учреждения | B80: 2520
A82: расходы на закупку товаров, работ, услуг, всего | B82: 2600 | C82: х | D82: =E82+F82+H82 -> 140,218,101.51 | E82: =E85+E99 -> 18,096,574.47 | F82: =SUM(F84+F85) -> 15,525,500.00 | H82: =H85+H99 -> 106,596,027.04
A83: в том числе: закупку научно-исследовательских и опытно-конструкторских работ | B83: 2610
A84: закупку товаров, работ, услуг в целях капитального ремонта государственного (муниципального) имущества | B84: 2630 | D84: =SUM(E84:H84) -> 0.00
A85: прочую закупку товаров, работ и услуг, всего | B85: 2640 | C85: х | D85: =SUM(D87:D95) -> 131,374,667.71 | E85: =SUM(E86:E95) -> 9,678,310.47 | F85: =SUM(F86:F95) -> 15,525,500.00 | H85: =SUM(H86:H95) -> 106,170,857.24 | I85: =SUM(I87:I95) -> 104,998,520.35
A86: в том числе:
A87: услуги связи | C87: 244 | D87: =SUM(E87:H87) -> 130,000.00 | E87: 130,000.00 | F87: 0.00 | H87: 0.00
A88: транспортные услуги | C88: 244 | D88: =SUM(E88:H88) -> 25,000.00 | E88: 25,000.00 | F88: 0.00 | H88: 0.00
A89: коммунальные услуги | C89: 244 | D89: 742,040.92 | E89: 690,531.00 | F89: 0.00 | H89: 51,509.92
A90: арендная плата за пользование имуществом | C90: 244 | D90: 0.00 | E90: 0.00 | F90: 0.00 | H90: 0.00
A91: работы, услуги по содержанию имущества | C91: 244 | D91: =SUM(E91:H91) -> 17,993,931.93 | E91: 1,795,500.00 | F91: =525500+15000000 -> 15,525,500.00 | H91: =672632.93+299 -> 672,931.93
A92: прочие работы, услуги | C92: 244 | D92: 5,017,844.35 | E92: 4,783,924.17 | F92: 0.00 | H92: 233,920.18
A93: страхование | C93: 244 | D93: 21,037.30 | E93: 21,037.30 | F93: 0.00 | H93: 0.00
A94: увеличение стоимости основных средств | C94: 244 | D94: 105,978,520.35 | E94: 980,000.00 | F94: 0.00 | H94: =2000000+100000000+2998520.35 -> 104,998,520.35 | I94: =100000000+2000000+2998520.35 -> 104,998,520.35
A95: увеличение стоимости материальных запасов | C95: 244 | D95: =SUM(E95:H95) -> 1,466,292.86 | E95: 1,252,318.00 | F95: 0.00 | H95: 213,974.86
A96: капитальные вложения в объекты государственной (муниципальной) собственности, всего | B96: 2650 | C96: х
A97: в том числе: приобретение объектов недвижимого имущества государственными (муниципальными) учреждениями | B97: 2651
A98: строительство (реконструкция) объектов недвижимого имущества государственными (муниципальными) учреждениями | B98: 2652 | C98: 243
A99: закупку энергетических ресурсов | B99: 2660 | C99: 247 | D99: =E99+F99+H99 -> 8,843,433.80 | E99: =1129174+7289090 -> 8,418,264.00 | H99: =271731.21+153438.59 -> 425,169.80
A100: Выплаты, уменьшающие доход, всего | B100: 3000 | C100: х | D100: =SUM(D101:D103) -> -46,739.00 | H100: =SUM(H101:H103) -> -46,739.00
A101: в том числе: налог на прибыль | B101: 3010 | C101: 180 | D101: =SUM(E101:H101) -> -46,739.00 | H101: -46,739.00
A102: налог на добавленную стоимость | B102: 3020
A103: прочие налоги, уменьшающие доход | B103: 3030
A104: Прочие выплаты, всего | B104: 4000 | C104: х | D104: =SUM(D105:D106) -> 0.00 | H104: =SUM(H105:H106) -> 0.00
A105: в том числе:
C106: 610 | D106: =SUM(E106:H106) -> 0.00 | H106: 0.00
A107: Остаток средств на конец текущего финансового года | B107: 0002 | D107: =D109 -> 0.00 | F107: =F8+F11-F45 -> 0.00 | H107: =SUM(H109) -> 0.00
A108: в том числе:
A109: внебюджетные источники | C109: 131 | D109: =E109+F109+H109 -> 0.00 | E109: =E11-E45 -> 0.00 | F109: =F8+F11-F45 -> 0.00 | H109: =H10+H11-H45+H100 -> 0.00

Sheet Раздел 2
A1: Раздел 2. Сведения по выплатам на закупки товаров, работ, услуг<9>
A3: N п/п | B3: Наименование показателя | C3: Коды строк | D3: Год начала закупки | E3: Код по бюджетной классификации Российской Федерации <9.1> | F3: Уникальный код <9.2> | G3: Сумма, руб.
G4: на 2024 г. текущий финансовый год | H4: на 2025 г. (1-й год планового периода) | I4: на 2026 г. (2-й год планового периода) | J4: за пределами планового периода
A5: 1 | B5: 2 | C5: 3 | D5: 4 | E5: 4.1 | F5: 4.2 | G5: 5 | H5: 6 | I5: 7 | J5: 8
A6: 1 | B6: Выплаты на закупку товаров, работ, услуг, всего <10> | C6: 26000 | D6: x | G6: =G10+G19 -> 148,161,877.25 | H6: =G6 -> 148,161,877.25 | I6: =G6 -> 148,161,877.25
A7: 1.1 | B7: в том числе: | C7: 26100 | D7: x
B8: по контрактам (договорам), заключенным до начала текущего финансового года без применения норм Федерального закона от 5 апреля 2013 г. N 44-ФЗ "О контрактной системе в сфере закупок товаров, работ, услуг для обеспечения государственных и муниципальных нужд" (далее - Федеральный закон N 44-ФЗ) и Федерального закона от 18 июля 2011 г. N 223-ФЗ "О закупках товаров, работ, услуг отдельными видами юридических лиц" (далее - Федеральный закон N 223-ФЗ) <11>
A9: 1.2 | B9: по контрактам (договорам), планируемым к заключению в соответствующем финансовом году без применения норм Федерального закона N 44-ФЗ и Федерального закона N 223-ФЗ <11> | C9: 26200 | D9: x
A10: 1.3 | B10: по контрактам (договорам), заключенным до начала текущего финансового года с учетом требований Федерального закона N 44-ФЗ и Федерального закона N 223-ФЗ <12> | C10: 26300 | D10: x | G10: =G15 -> 21,814,487.88 | H10: =H15 -> 21,814,487.88 | I10: =I15 -> 21,814,487.88
A11: 1.3.1 | B11: в том числе: | C11: 26310 | D11: x | E11: x
B12: в соответствии с Федеральным законом N 44-ФЗ
B13: из них <9.1>: | C13: 26310.1
B14: из них <9.1>: | C14: 26310.2
A15: 1.3.2 | B15: в соответствии с Федеральным законом N 223-ФЗ | C15: 26320 | D15: x | E15: x | G15: =G16+G17+G18 -> 21,814,487.88 | H15: =H16+H17+H18 -> 21,814,487.88 | I15: =I16+I17+I18 -> 21,814,487.88
B16: в т.ч: | C16: 26321 | E16: 244 | G16: =5382089.58+70358.56 -> 5,452,448.14 | H16: =G16 -> 5,452,448.14 | I16: 5,452,448.14
C17: 26322 | E17: 247 | G17: =10582810.25+440000 -> 11,022,810.25 | H17: 11,022,810.25 | I17: 11,022,810.25
C18: 2633 | E18: 323 | G18: 5,339,229.49 | H18: 5,339,229.49 | I18: 5,339,229.49
A19: 1.4 | B19: по контрактам (договорам), планируемым к заключению в соответствующем финансовом году с учетом требований Федерального закона N 44-ФЗ и Федерального закона N 223-ФЗ <12> | C19: 26400 | D19: x | G19: =G20+G26+G39 -> 126,347,389.37 | H19: =G19 -> 126,347,389.37 | I19: =G19 -> 126,347,389.37
A20: 1.4.1 | B20: в том числе: | C20: 26410 | D20: x | G20: =G24 -> 4,651,032.13 | H20: =G20 -> 4,651,032.13 | I20: =G20 -> 4,651,032.13
B21: за счет субсидий, предоставляемых на финансовое обеспечение выполнения государственного (муниципального) задания
A22: 1.4.1.1. | B22: в том числе: | C22: 26411 | D22: x
B23: в соответствии с Федеральным законом N 44-ФЗ
A24: 1.4.1.2 | B24: в соответствии с Федеральным законом N 223-ФЗ <13> | C24: 26412 | D24: x | G24: =991517.39+3659514.74 -> 4,651,032.13 | H24: =G24 -> 4,651,032.13 | I24: =G24 -> 4,651,032.13
B25: в т.ч.: | E25: 244
A26: 1.4.2 | B26: за счет субсидий, предоставляемых в соответствии с абзацем вторым пункта 1 статьи 78.1 Бюджетного кодекса Российской Федерации | C26: 26420 | D26: x | G26: =G30 -> 15,525,500.00 | H26: =G26 -> 15,525,500.00 | I26: =G26 -> 15,525,500.00
A27: 1.4.2.1 | B27: в том числе: | C27: 26421 | D27: x
B28: в соответствии с Федеральным законом N 44-ФЗ
B29: из них <9.1>: | C29: 26421.1 | D29: x
A30: 1.4.2.2 | B30: в соответствии с Федеральным законом N 223-ФЗ <13> | C30: 26422 | D30: x | G30: 15,525,500.00 | H30: =G30 -> 15,525,500.00 | I30: =G30 -> 15,525,500.00
B31: в т.ч.: | E31: 244
A32: 1.4.3 | B32: за счет субсидий, предоставляемых на осуществление капитальных вложений <14> | C32: 26430 | D32: x
B33: из них <9.1>: | C33: 26430.1 | D33: x
B34: из них <9.2>: | C34: 26421.2 | D34: x
A35: 1.4.4 | B35: за счет средств обязательного медицинского страхования | C35: 26440 | D35: x
A36: 1.4.4.1 | B36: в том числе: | C36: 26441 | D36: x
B37: в соответствии с Федеральным законом N 44-ФЗ
A38: 1.4.4.2 | B38: в соответствии с Федеральным законом N 223-ФЗ <13> | C38: 26442 | D38: x
A39: 1.4.5 | B39: за счет прочих источников финансового обеспечения | C39: 26450 | D39: x | G39: =G44 -> 106,170,857.24 | H39: =G39 -> 106,170,857.24 | I39: =G39 -> 106,170,857.24
A40: 1.4.5.1 | B40: в том числе: | C40: 26451 | D40: x
B41: в соответствии с Федеральным законом N 44-ФЗ
B42: из них <9.1>: | C42: 26451.1 | D42: x
B43: из них <9.2>: | C43: 26451.2 | D43: x
A44: 1.4.5.2 | B44: в соответствии с Федеральным законом N 223-ФЗ | C44: 26452 | D44: x | E44: 244 | G44: 106,170,857.24 | H44: =G44 -> 106,170,857.24 | I44: =G44 -> 106,170,857.24
A45: 2 | B45: Итого по контрактам, планируемым к заключению в соответствующем финансовом году в соответствии с Федеральным законом N 44-ФЗ, по соответствующему году закупки | C45: 26500 | D45: x
B46: в том числе по году начала закупки: | C46: 26510
A48: 3 | B48: Итого по договорам, планируемым к заключению в соответствующем финансовом году в соответствии с Федеральным законом N 223-ФЗ, по соответствующему году закупки | C48: 26600 | D48: x | G48: =G49 -> 0.00 | H48: =H49 -> 0.00 | I48: =I49 -> 0.00
B49: в том числе по году начала закупки: | C49: 26610
A52: --------------------------------
A53: <9> В Разделе 2 "Сведения по выплатам на закупку товаров, работ, услуг" Плана детализируются показатели выплат по расходам на закупку товаров, работ, услуг, отраженные по соответствующим строкам Раздела 1 "Поступления и выплаты" Плана
A54: <9.1> В случаях, если учреждению предоставляются субсидия на иные цели, субсидия на осуществление капитальных вложений или грант в форме субсидии в соответствии с абзацем первым пункта 4 статьи 78.1 Бюджетного кодекса Российской Федерации в целях достижения результатов федерального проекта, в том числе входящего в состав соответствующего национального проекта (программы), определенного Указом Президента Российской Федерации от 7 мая 2018 г. N 204 "О национальных целях и стратегических задачах развития Российской Федерации на период до 2024 года", или регионального проекта, обеспечивающего достижение целей, показателей и результатов федерального проекта (далее - региональный проект), показатели строк 26310, 26421, 26430 и 26451 Раздела 2 "Сведения по выплатам на закупку товаров, работ, услуг" детализируются по коду целевой статьи (8 - 17 разряды кода классификации расходов бюджетов, при этом в рамках реализации регионального проекта в 8 - 10 разрядах могут указываться нули).
A55: <9.2> Указывается уникальный код объекта капитального строительства или объекта недвижимого имущества, присвоенный государственной интегрированной информационной системой управления общественными финансами "Электронный бюджет", в случае если источником финансового обеспечения расходов на осуществление капитальных вложений являются средства федерального бюджета, в том числе предоставленные в виде межбюджетного трансферта в целях софинансирования расходных обязательств субъекта Российской Федерации (муниципального образования).
A56: <10> Плановые показатели выплат на закупку товаров, работ, услуг по строке 26000 Раздела 2 "Сведения по выплатам на закупку товаров, работ, услуг" Плана распределяются на выплаты по контрактам (договорам), заключенным (планируемым к заключению) в соответствии с гражданским законодательством (строки 26100 и 26200), а также по контрактам (договорам), заключаемым в соответствии с требованиями законодательства Российской Федерации и иных нормативных правовых актов о контрактной системе в сфере закупок товаров, работ, услуг для обеспечения государственных и муниципальных нужд с детализацией указанных выплат по контрактам (договорам), заключенным до начала текущего финансового года (строка 26300) и планируемым к заключению в соответствующем финансовом году (строка 26400).
A57: <11> Указывается сумма договоров (контрактов) о закупках товаров, работ, услуг, заключенных без учета требований Федерального закона N 44-ФЗ и Федерального закона N 223-ФЗ, в случаях, предусмотренных указанными федеральными законами.
A58: <12> Указывается сумма закупок товаров, работ, услуг, осуществляемых в соответствии с Федеральным законом N 44-ФЗ и Федеральным законом N 223-ФЗ.
A59: <13> Государственным (муниципальным) бюджетным учреждением показатель не формируется.
A60: <14> Указывается сумма закупок товаров, работ, услуг, осуществляемых в соответствии с Федеральным законом N 44-ФЗ.

Sheet Раздел 3
A1: Раздел 3. Сведения и показатели об использования ресурсов учреждения (подразделения) на "27" февраля 2024 г.
A3: Наименование показателя | B3: Единица измерения | C3: за 2024 г. текущий финансовый год | D3: на 2025 г. 1-й год планового периода | E3: на 2026 г. 2-й год планового периода | F3: за пределами планового периода
A4: 1 | B4: 2 | C4: 4 | D4: 5 | E4: 6 | F4: 7
A5: 1. Сведения об уровне оплаты труда работников учреждения (подразделения) | B5: x | C5: x | D5: x | E5: x | F5: x
A6: 1.1. Фонд оплаты труда (с учетом ЕЖКВ), всего | B6: тыс. руб. | C6: 49,621.50 | D6: 57,896.21 | E6: 62,191.71
A7: из них: выплаты стимулирующего характера | B7: тыс. руб. | C7: =(1463003.5*12)/1000 -> 17,556.04 | D7: =(1463003.5*12)/1000 -> 17,556.04 | E7: =(1463003.5*12)/1000 -> 17,556.04
A8: в том числе:
A9: 1.1.1. Фонд оплаты труда руководителей учреждения (подразделения) и их заместителей и главных бухгалтеров | B9: тыс. руб. | C9: 8,987.85 | D9: 9,697.89 | E9: 10,464.02
A10: из них: выплаты стимулирующего характера | B10: тыс. руб. | C10: 3,826.44 | D10: 3,826.44 | E10: 3,826.44
A11: 1.1.2. Фонд оплаты труда прочих работников учреждения (подразделения) | B11: тыс. руб. | C11: =C6-C9-C13 -> 17,428.95 | D11: =D6-D9-D13 -> 24,075.92 | E11: =E6-E9-E13 -> 25,874.77
A12: из них: выплаты стимулирующего характера | B12: тыс. руб. | C12: =C7-C10 -> 13,729.60 | D12: =D7-D10 -> 13,729.60 | E12: =E7-E10 -> 13,729.60
A13: 1.2. Фонд оплаты труда отдельных категорий работников бюджетной сферы, повышение оплаты труда которых предусмотрено указами Президента РФ, всего | B13: тыс. руб. | C13: 23,204.70 | D13: 24,122.40 | E13: 25,852.92
A14: 1.3. Среднесписочная численность работников учреждения (подразделения) | B14: чел. | C14: 59 | D14: 59 | E14: 59
A15: в том числе:
A16: 1.3.1. Среднесписочная численность руководителей учреждения (подразделения) и их заместителей и главных бухгалтеров | B16: чел. | C16: 6 | D16: 6 | E16: 6
A17: 1.3.2. Среднесписочная численность прочих работников учреждения (подразделения) | B17: чел. | C17: 46.6 | D17: 46.6 | E17: 46.6
A18: 1.4. Среднесписочная численность работников учреждения (подразделения), с которыми заключены эффективные контракты | B18: чел. | C18: 59 | D18: 59 | E18: 59
A19: в том числе:
A20: 1.4.1. Среднесписочная численность руководителей учреждения (подразделения) и их заместителей и главных бухгалтеров, с которыми заключены эффективные контракты | B20: чел. | C20: 6 | D20: 6 | E20: 6
A21: 1.4.2. Среднесписочная численность прочих работников учреждения (подразделения), с которыми заключены эффективные контракты | B21: чел. | C21: 30 | D21: 30 | E21: 30
A22: 1.5. Среднесписочная численность отдельных категорий работников бюджетной сферы, повышение оплаты труда которых предусмотрено указами Президента РФ, всего | B22: чел. | C22: 23 | D22: 23 | E22: 23
A23: 1.6. Средняя заработная плата, необходимая для реализации указов Президента РФ, предусматривающих повышение оплаты труда отдельных категорий работников бюджетной сферы | B23: руб. | C23: 84,075.00 | D23: 87,400.00 | E23: 93,670.00
A24: 1.7. Средняя заработная плата, сложившаяся/прогнозируемая в отчетном периоде | B24: руб. | C24: x | D24: x | E24: x | F24: x
A25: в том числе по категориям работников, повышение оплаты труда которых предусмотрено указами Президента РФ
A26: 1.8. Отношение средней заработной платы руководителей учреждения (подразделения) и их заместителей к средней заработной плате работников учреждения (подразделения) | B26: % | C26: 1.7 | D26: 1.7 | E26: 1.7
A27: 1.9. Отношение средней заработной платы, сложившейся/прогнозируемой в отчетном периоде, к средней заработной плате, необходимой для реализации указов Президента РФ | B27: % | C27: x | D27: x | E27: x | F27: x
A28: 2. Сведения об использовании имущества учреждения (подразделения) | B28: x | C28: x | D28: x | E28: x | F28: x
A29: 2.1. Общая площадь объектов недвижимого имущества, закрепленная за учреждением (подразделением) | B29: м2 | C29: 10,527.90 | D29: 10,527.90 | E29: 10,527.90
A30: в том числе:
A31: 2.1.1. Площадь недвижимого имущества в безвозмездном пользовании, всего | B31: м2 | C31: 10,527.90 | D31: 10,527.90 | E31: 10,527.90
A32: 2.1.2. Площадь недвижимого имущества в безвозмездном пользовании, не используемая для выполнения государственного задания | B32: м2 | C32: 137.4 | D32: 137.4 | E32: 137.4
A33: 2.1.3. Площадь недвижимого имущества, переданная в аренду | B33: м2 | C33: 239.3 | D33: 239.3 | E33: 239.3
A34: 2.2. Затраты на содержание имущества учреждения (подразделения) | B34: тыс. руб. | C34: 19,747.23 | D34: 19,747.23 | E34: 19,747.23
A35: в том числе:
A36: 2.2.1. Затраты на содержание имущества учреждения (подразделения), не используемого для выполнения государственного задания | B36: тыс. руб. | C36: 476.7 | D36: 476.7 | E36: 476.7
A37: 2.3. Коэффициент износа основных средств (отношение величины износа основных средств на конец отчетного периода к стоимости основных средств учреждения на конец отчетного периода) | B37: ед. | C37: 0.47 | D37: 0.47 | E37: 0.47
A38: 2.4. Коэффициент обновления основных средств (отношение стоимости основных средств, поступивших за отчетный период, к общей стоимости основных средств учреждения на конец отчетного периода) | B38: ед. | C38: 0.01 | D38: 0.01 | E38: 0.01
A39: 2.5. Коэффициенты ремонта зданий, характеризующие величину фактических расходов на капитальный ремонт зданий, приходящуюся на один рубль балансовой стоимости основных средств (в том числе за счет бюджетных средств) | B39: ед.
A40: в том числе: | B40: ед.
A41: за счет бюджетных средств | B41: ед.
A42: за счет приносящей доход деятельности | B42: ед.

Sheet Раздел 4
A1: Раздел 4. Перечень мероприятий по повышению эффективности деятельности учреждения (подразделения) на "27" февраля 2024 г.
A3: Наименование мероприятия | B3: Сроки проведения | C3: Ожидаемый результат реализации | D3: Затраты, необходимые на проведение мероприятия, тыс. руб.
A4: 1. Повышение эффективности управления и кадрового потенциала учреждения (подразделения) | B4: в течение года | C4: Отслеживание изменений в законодательстве и применение их в работе; Контроль, учет, безопасность выполнения ПТЭУ; Безопасная эксплуатация электроустановок | D4: 50.5
A6: 2. Повышение эффективности управления государственной собственностью
A8: 3. Повышение качества предоставления государственных услуг | B8: в течение года | C8: Повышение квалификации работников | D8: 0.0
A10: 4. Направления оптимизации расходов учреждения (подразделения) | B10: в течение года | C10: Режим экономии энергоресурсов и водоснабжения в учреждении | D10: 0.0
A12: Итого: | B12: x | C12: x | D12: =SUM(D4:D11) -> 50.5
A14: Ответственное должностное лицо | B14: Главный бухгалтер | D14: О.А. Манаенкова
B15: (должность) | C15: (подпись) | D15: (расшифровка подписи)
A16: Исполнитель Главный бухгалтер | C16: Манаенкова О.А. | D16: 88153274763
A17: (должность) | B17: (подпись) | C17: (фамилия, инициалы) (телефон)
A18: "27" февраля 2024 г.
A20: СОГЛАСОВАНО<14>
A21: ___________________________________________________________________________
A22: (наименование должности уполномоченного лица органа, осуществляющего
A23: функции и полномочия учредителя)
A24: ___________________ __________________________________________
A25: (подпись) (расшифровка подписи)
A26: "__" ___________ 20___ г.
A28: <14> План государственного областного бюджетного учреждения (План с учетом изменений) представляется на рассмотрение и согласование в орган, осуществляющий функции и полномочия учредителя.

Sheet Обоснования доходов
A1: Обоснования (расчеты) к плану финансово-хозяйственной деятельности государственного учреждения на 2024 год (на текущий финансовый год) (на 2025 год (на первый год планового периода), на 2026 год (на второй год планового периода)) <15>
A3: 1. Обоснования (расчеты) доходов
A5: 1.1. Обоснование (расчет) доходов от собственности
A7: Код аналитической группы подвида доходов | AQ7: 120
A9: № п/п | F9: Наименование показателя | AV9: Ставка (тариф) платы за использование имущества за единицу (объект, кв. м), руб. | BM9: Планируемый объем предоставления имущества в пользование (в натуральных показателях) | CD9: Объем планируемых поступлений, руб.
A10: 1 | F10: 2 | AV10: 3 | BM10: 4 | CD10: 5
A11: 1 | F11: Сдача в аренду нежилый помещений (ИП Мостовая Е.А.) | AV11: 277.54 | BM11: 239.3 | CD11: 797,004.18
A12: 2 | F12: Сдача в аренду нежилый помещений | CD12: 0.00
A13: Итого: | AV13: х | CD13: =CD11+CD12 -> 797,004.18
A15: 1.2. Обоснование (расчет) доходов от оказания услуг (работ), компенсации затрат учреждений
A17: Код аналитической группы подвида доходов | AQ17: 131
A19: 1.2.1. Расчет плановых поступлений в виде субсидии на финансовое обеспечение выполнения государственного задания
A21: № п/п | F21: Наименование показателя | AV21: Объем поступлений, руб.
A22: 1 | F22: 2 | AV22: 3
A23: 1 | F23: Субсидия на финансовое обеспечение выполнения государственного задания | AV23: 87,575,200.00
F24: Итого: | AV24: =AV23 -> 87,575,200.00
A26: 1.2.2. Расчет плановых поступлений от оказания дополнительных платных услуг (выполнения работ)
A28: № п/п | F28: Наименование услуги (работы) | AV28: Ставка (тариф) платы за единицу услуги (работы), руб. | BM28: Планируемый объем оказания услуг (выполнения работ), ед. | CD28: Объем планируемых поступлений, руб.
A29: 1 | F29: 2 | AV29: 3 | BM29: 4 | CD29: 5
A30: 1 | F30: Образовательные услуги | CD30: 627,374.00
A31: 2 | F31: Предоставление жилья в общежитии | CD31: 920,000.09
A32: 3 | F32: Возмещение затрат за коммунальные услуги арендаторами | CD32: 715,676.06
F33: Итого: | AV33: х | CD33: =SUM(CD30:CS32) -> 2,263,050.15
A35: 1.3. Обоснование (расчет) доходов от штрафов, пеней, иных сумм принудительного изъятия
A37: Код аналитической группы подвида доходов | AQ37: 140
A39: № п/п | F39: Наименование показателя | AV39: Количество документов-оснований | BM39: Средний объем поступлений по одному документу | CD39: Объем планируемых поступлений, руб.
A40: 1 | F40: 2 | AV40: 3 | BM40: 4 | CD40: 5
A41: 1
F42: Итого: | AV42: х | BM42: х | CD42: =CD41 -> 0.00
A43: 1.4. Обоснование (расчет) доходов от безвозмездных денежных поступлений
A45: Код аналитической группы подвида доходов | AQ45: 150
A47: № п/п | F47: Наименование вида безвозмездных денежных поступлений | AV47: Количество договоров | BM47: Объем поступлений по одному договору | CD47: Объем планируемых поступлений, руб.
A48: 1 | F48: 2 | AV48: 3 | BM48: 4 | CD48: 5
A49: 1 | F49: Выплата стипендии обучающимся по очной форме обучения в профессиональных образовательных организациях | AV49: 1 | BM49: 6,147,400.00 | CD49: =BM49 -> 6,147,400.00
A50: 2 | F50: Предоставление бесплатного питания отдельным категориям обучающихся учреждений среднего профессионального образования | AV50: 1 | BM50: 2,040,200.00 | CD50: 2,040,200.00
A51: 3 | F51: Выплата ежемесячного денежного вознаграждения за классное руководство (кураторство) педагогическим работникам государственных образовательных организаций, реализующих образовательные программы среднего профессионального образования, в том числе программы профессионального обучения для лиц с ограниченными возможностями здоровья (ОБ) | AV51: 1 | BM51: 140,600.00 | CD51: 140,600.00
A52: 4 | F52: Оплата стоимости проезда и провоза багажа к месту использования отпуска (отдыха) и обратно | AV52: 1 | BM52: 928,900.00 | CD52: =BM52 -> 928,900.00
A53: 5 | F53: Содержание детей-сирот, детей, оставшихся без попечения родителей, лиц из их числа в государственных автономных профессиональных образовательных учреждениях Мурманской области | AV53: 1 | BM53: 4,481,500.00 | CD53: 4,481,500.00
A54: 6 | F54: Оказание государственной поддержки развития образовательно-производственных центров (кластеров) и образовательных кластеров среднего профессионального образования на основе интеграции образовательных организаций, действующих в региональном секторе экономики, в рамках федерального проекта "Профессионалитет" | AV54: 1 | BM54: 15,000,000.00 | CD54: =BM54 -> 15,000,000.00
A55: 7 | F55: Обеспечение комплексной безопасности государственных учреждений, подведомственных Министерству образования и науки Мурманской области | AV55: 1 | BM55: 525,500.00 | CD55: 525,500.00
A56: 8 | F56: Выплата ежемесячного денежного вознаграждения за классное руководство (кураторство) педагогическим работникам государственных образовательных организаций, реализующих образовательные программы среднего профессионального образования, в том числе программы профессионального обучения для лиц с ограниченными возможностями здоровья (ФБ) | AV56: 1 | BM56: 3,093,600.00 | CD56: 3,093,600.00
A57: 9 | F57: Государственная поддержка развития образовательно-производственных центров (кластеров), создаваемых на основе интеграции образовательных организаций, реализующих программы среднего профессионального образования, и организаций, действующих в реальном секторе экономики (ФБ) | AV57: 1 | BM57: 100,000,000.00 | CD57: =BM57 -> 100,000,000.00
A58: 10 | F58: Безвозмездное (целевое) финансирование на приобретение оборудования для оснащения лабораторий и мастерских | AV58: 1 | BM58: 2,998,520.35 | CD58: =BM58 -> 2,998,520.35
A59: 11 | F59: Стипендия Правительства РФ | AV59: 1 | BM59: 33,600.00 | CD59: =BM59 -> 33,600.00
F60: Итого: | AV60: х | BM60: х | CD60: =SUM(CD49:CD59) -> 135,389,820.35
A62: 1.5. Обоснование (расчет) поступлений от субсидии на иные цели, субсидии на осуществление капитальных вложений
A64: Код аналитической группы подвида доходов
A66: № п/п | F66: Наименование вида дохода | AV66: Объем планируемых поступлений, руб.
A67: 1 | F67: 2 | AV67: 3
F70: Итого:
A72: 1.6. Обоснование (расчет) доходов от операций с активами
A74: Код аналитической группы подвида доходов | AQ74: 440
A76: № п/п | F76: Наименование показателя | AM76: Единица измерения | AV76: Планируемый объем реализации имущества,ед. | BM76: Цена за единицу, руб. | CD76: Объем планируемых поступлений, руб.
A77: 1 | F77: 2 | AM77: 3 | AV77: 4 | BM77: 5 | CD77: 6
A78: 1 | F78: Организация платного питания | CD78: 278,314.00
F80: Итого: | AV80: х | BM80: х | CD80: =CD78 -> 278,314.00
A82: 1.7. Обоснование (расчет) прочих поступлений
A84: Код аналитической группы вида источников финансирования дефицитов
A86: № п/п | F86: Наименование показателя | AV86: Объем планируемых поступлений, руб.
A87: 1 | F87: 2 | AV87: 3
A88: Источник финансового обеспечения: ____________________________________________________
A90: Итого:
A92: 1.8. Обоснование (расчет) налогов, уменьшающих доход
A94: Код видов доходов | V94: 180
A96: № п/п | F96: Наименование показателя | AV96: Налоговая база, руб. | BM96: Ставка налога, % | CD96: Сумма исчисленного налога, подлежащего уплате, руб. (гр. 3 x гр. 4 / 100)
A97: 1 | F97: 2 | AV97: 3 | BM97: 4 | CD97: 5
A98: 1 | F98: Налог на прибыль | CD98: 46,739.00
F100: Итого: | CD100: =CD98 -> 46,739.00
A102: <15> Обоснования (расчеты) к плану финансово-хозяйственной деятельности государственного учреждения формируются отдельно по годам.

Sheet Обоснования расходов
A1: 2.1.2. Обоснования (расчеты) прочих выплат персоналу
A3: Код видов расходов | W3: 112
A5: № п/п | G5: Наименование расходов | AD5: Средний размер выплаты на одного работника в день, руб. | BC5: Количество работников, чел. | BS5: Количество дней | CI5: Сумма, руб. (гр. 3 x гр. 4 x гр. 5)
A6: 1 | G6: 2 | AD6: 3 | BC6: 4 | BS6: 5 | CI6: 6
A7: Источник финансового обеспечения: 4
A8: 1 | G8: Командировочные расходы (суточные) | AD8: 100/500 | BC8: 28 | BS8: =13+28 -> 41 | CI8: 9,300.00
A9: 2 | G9: Командировочные расходы (проезд в командировку) | AD9: 8222.77 | BC9: 9 | CI9: 74,004.90
A10: 3 | G10: Командировочные расходы (проживание) | AD10: 550 | BS10: 7 | CI10: 13,500.00
A11: 4 | G11: Возмещение мед.комиссии при устройстве на работе | BS11: 9 | CI11: 65,812.00
A12: Итого по источнику финансового обеспечения: | AD12: х | BC12: х | BS12: х | CI12: =SUM(CI8:CI11) -> 162,616.90
A13: Источник финансового обеспечения: 5
A14: 1 | G14: Проезд к месту отдыха и обратно | AD14: 25802.78 | BC14: 24/12 | CI14: 928,900.00
A15: Итого по источнику финансового обеспечения: | AD15: х | BC15: х | BS15: х | CI15: =SUM(CI14:CI14) -> 928,900.00
A16: Источник финансового обеспечения: 2
A17: 1 | G17: Возмещение командировочных расходов (проживание) | CI17: 100,000.00
A18: Итого по источнику финансового обеспечения: | AD18: х | BC18: х | BS18: х | CI18: =SUM(CI17:CZ17) -> 100,000.00
A19: Итого: | AD19: х | BC19: х | BS19: х | CI19: =CI12+CI15+CI18 -> 1,191,516.90
A21: 2.1.3. Расчеты (обоснования) выплат персоналу по уходу за ребенком
A22: Код видов расходов
A24: № п/п | G24: Наименование расходов | AD24: Средняя численность работников, получающих пособие | AY24: Количество выплат в год на одного работника | BQ24: Размер выплаты (пособия) в месяц, руб. | CI24: Сумма, руб. (гр. 3 x гр. 4 x гр. 5)
A25: 1 | G25: 2 | AD25: 3 | AY25: 4 | BQ25: 5 | CI25: 6
A26: Источник финансового обеспечения: ____________________________________________________
A28: Итого по источнику финансового обеспечения: | AD28: х | AY28: х | BQ28: х
A29: Источник финансового обеспечения: ____________________________________________________
A31: Итого по источнику финансового обеспечения: | AD31: х | AY31: х | BQ31: х
G32: Итого: | AD32: х | AY32: х | BQ32: х
A34: 2.1.4. Расчеты (обоснования) иных выплат персоналу учреждений, за исключением фонда оплаты труда
A36: Код видов расходов | W36: 113
A38: № п/п | G38: Наименование расходов | AY38: Количество работников, чел. | BQ38: Средний размер выплаты, руб. | CI38: Сумма, руб. (гр. 3 x гр. 4 x гр. 5)
A39: 1 | G39: 2 | AD39: 3 | AY39: 4 | BQ39: 5 | CI39: 6
A40: Источник финансового обеспечения: 4
A41: 1 | G41: Возмещение расходов учащимся (медкомиссии, соревнования) | AY41: 4 1 | BQ41: 23380 1382 | CI41: 24,762.00
A42: Итого по источнику финансового обеспечения: | AY42: х | BQ42: х | CI42: =CI41 -> 24,762.00
A43: Источник финансового обеспечения: ____________________________________________________
A45: Итого по источнику финансового обеспечения: | AY45: х | BQ45: х
G46: Итого: | AY46: х | BQ46: х
A48: 2.1.5. Расчеты (обоснования) страховых взносов на обязательное пенсионное страхование, на обязательное социальное страхование на случай временной нетрудоспособности и в связи с материнством, на обязательное социальное страхование от несчастных случаев на производстве и профессиональных заболеваний, на обязательное медицинское страхование
A50: Код видов расходов | W50: 119
A52: № п/п | G52: Наименование государственного внебюджетного фонда | BV52: Размер базы для начисления страховых взносов, руб. | CL52: Сумма взноса, руб.
A53: 1 | G53: 2 | BV53: 3 | CL53: 4
A54: Источник финансового обеспечения: 4
A55: 1 | H55: Страховые взносы на обязательное пенсионное страхование, на обязательное социальное страхование на случай временной нетрудоспособности и в связи с материнством, на обязательное медицинское страхование, всего | BV55: =BV56 -> 52,800,000.00 | CL55: =CL56+CL58 -> 15,945,600.00
A56: 1.1 | H56: в том числе: | BV56: 52,800,000.00 | CL56: =BV56*30% -> 15,840,000.00
H57: по ставке 30,0%
H58: по ставке 0,2% | CL58: =BV56*0.2% -> 105,600.00
A59: 1.2 | H59: по ставке 15,1%
A60: 1.3 | H60: с применением пониженных тарифов взносов для отдельных категорий плательщиков
A61: 2 | H61: Дополнительные тарифы на ОПС в установленных случаях проведения специальной оценки условий труда для отдельных категорий плательщиков, производящих выплаты физическим лицам, которые имеют право на досрочное назначение страховой пенсии
G62: Итого по источнику финансового обеспечения: | BV62: х | CL62: =CL55 -> 15,945,600.00
A64: Источник финансового обеспечения: 5
A65: 1 | H65: Страховые взносы на обязательное пенсионное страхование, на обязательное социальное страхование на случай временной нетрудоспособности и в связи с материнством, на обязательное медицинское страхование, всего | BV65: =BV66 -> 2,508,893.00 | CL65: =CL66+CL68 -> 725,307.00
A66: 1.1 | H66: в том числе: | BV66: =2397480+111413 -> 2,508,893.00 | CL66: =BV66*30%-32378.69 -> 720,289.21
H67: по ставке 30,0%
H68: по ставке 0,2% | CL68: =BV66*0.2% -> 5,017.79
A69: 1.2 | H69: по ставке 15,1%
A70: 1.3 | H70: с применением пониженных тарифов взносов для отдельных категорий плательщиков
A71: 2 | H71: Дополнительные тарифы на ОПС в установленных случаях проведения специальной оценки условий труда для отдельных категорий плательщиков, производящих выплаты физическим лицам, которые имеют право на досрочное назначение страховой пенсии
G72: Итого по источнику финансового обеспечения: | BV72: х | CL72: =CL65 -> 725,307.00
A74: Источник финансового обеспечения: 2
A75: 1 | H75: Страховые взносы на обязательное пенсионное страхование, на обязательное социальное страхование на случай временной нетрудоспособности и в связи с материнством, на обязательное медицинское страхование, всего | BV75: =BV76 -> 1,160,000.00 | CL75: =CL76+CL78 -> 350,320.00
A76: 1.1 | H76: в том числе: | BV76: 1,160,000.00 | CL76: =BV76*30% -> 348,000.00
H77: по ставке 30,0%
H78: по ставке 0,2% | CL78: =BV76*0.2% -> 2,320.00
A79: 1.2 | H79: по ставке 15,1%
A80: 1.3 | H80: с применением пониженных тарифов взносов для отдельных категорий плательщиков
A81: 2 | H81: Дополнительные тарифы на ОПС в установленных случаях проведения специальной оценки условий труда для отдельных категорий плательщиков, производящих выплаты физическим лицам, которые имеют право на досрочное назначение страховой пенсии
G82: Итого по источнику финансового обеспечения: | BV82: х | CL82: =CL75 -> 350,320.00
G83: Итого: | BV83: х | CL83: =CL62+CL72+CL82 -> 17,021,227.00
A85: 2.2. Расчеты (обоснования) расходов на социальные и иные выплаты населению
A87: 2.2.1.Расчеты (обоснования) расходов на пособия, компенсации и иные социальные выплаты гражданам, кроме публичных нормативных обязательств
A89: Код видов расходов | W89: 321
A91: № п/п | H91: Наименование показателя | BC91: Размер одной выплаты, руб. | BS91: Количество выплат в год | CI91: Общая сумма выплат, руб. (гр. 3 x гр. 4)
A92: 1 | H92: 2 | BC92: 3 | BS92: 4 | CI92: 5
A93: Источник финансового обеспечения: 5
A94: 1 | H94: Компенсация за питание учащимся ТЖС за дни практики | BC94: 202 | BS94: 862 | CI94: =BC94*BS94 -> 174,124.00
A95: 2 | H95: Компенсация за питание детям-сиротам | BC95: 595 | CI95: 1,318,581.10
A96: 3 | H96: Компенсация стоимости проезда к месту учебы и обратно | BC96: 1000 | BS96: 120 | CI96: =BC96*BS96 -> 120,000.00
A97: 3 | H97: Компенсация стоимости проезда к месту отдыха и обратно | BC97: 15000 | BS97: 2 | CI97: 30,000.00
A98: 4 | H98: Единовременное пособие при выпуске | BC98: 500 | BS98: 5 | CI98: 2,500.00
A99: 4 | H99: Компенсация при выпуске | BC99: 93334.78 | BS99: 5 | CI99: 466,673.90
A100: 5 | H100: Компенсация стоимости канцелярских принадлежностей детям-сиротам | BC100: 6153 | BS100: 12 | CI100: 73,836.00
A101: 6 | H101: Компенсация стоимости канцелярских принадлежностей учащимся под опекой | BC101: 6153 | BS101: 8 | CI101: 49,224.00
A102: 7 | H102: Компенсация стоимости лекарственных препаратов детям-сиротам | BC102: 2500 | BS102: 1 | CI102: 2,500.00
A103: Итого по источнику финансового обеспечения: | BC103: х | BS103: х | CI103: =SUM(CI94:CI102) -> 2,237,439.00
A104: Итого: | BC104: х | BS104: х | CI104: =SUM(CI94:CZ102) -> 2,237,439.00
A105: Источник финансового обеспечения: 2
A106: 1 | H106: Материальная помощь учащимся
A107: Итого: | BC107: х | BS107: х | CI107: =CI106 -> 0.00
A108: ВСЕГО: | BC108: х | BS108: х | CI108: =CI104+CI107 -> 2,237,439.00
A109: 2.2.2.Расчеты (обоснования) расходов на приобретение товаров, работ, услуг в пользу граждан в целях их социального обеспечения
A111: Код видов расходов | W111: 323
A113: № п/п | H113: Наименование показателя | BC113: Количество товаров (работ, услуг), ед. | BS113: Средняя стоимость, руб. | CI113: Сумма, руб. (гр. 3 x гр. 4)
A114: 1 | H114: 2 | BC114: 3 | BS114: 4 | CI114: 5
A115: Источник финансового обеспечения: 5____________________________________________________
A116: 1 | H116: Приобретение продуктов питания обучающимся из ТЖС | CI116: 1,866,076.00
A117: 2 | H117: Приобретение продуктов питания для детей-сирот | CI117: 1,154,167.64
A118: 3 | H118: Приобретение предметов мягкого инвентаря | BS118: 93334.78 | CI118: 1,120,017.36
A119: 4 | H119: Приобретение предметов личной гигиены | BS119: 1000 | CI119: 144,000.00
A120: Итого по источнику финансового обеспечения: | BC120: х | BS120: х | CI120: =SUM(CI116:CI119) -> 4,284,261.00
A122: 2.3. Расчет (обоснование) расходов на уплату налогов, сборов и иных платежей
A124: 2.3.1. Расчет (обоснование) расходов на уплату налога на имущество организаций и земельный налог
A126: Код видов расходов | W126: 851
A128: № п/п | H128: Наименование показателя | BC128: Налоговая база, руб. | BS128: Ставка налога, % | CI128: Сумма исчисленного налога, подлежащего уплате, руб. (гр. 3 x гр. 4 / 100)
A129: 1 | H129: 2 | BC129: 3 | BS129: 4 | CI129: 5
A130: Источник финансового обеспечения: 4
A131: 1 | H131: Налог на имущество | BC131: 111,775,227.27 | BS131: 2.2 | CI131: 2,394,942.00
A132: 1 | H132: Земельный налог (51:28:0050001:23) | BC132: 15,784,719.09 | BS132: 1.5 | CI132: 280,071.29
A133: Итого по источнику финансового обеспечения: | BC133: х | BS133: х | CI133: =CI131+CI132 -> 2,675,013.29
A134: Источник финансового обеспечения: 2
A135: 1 | H135: Налог на имущество | BC135: 111,775,227.27 | BS135: 2.2 | CI135: =(2459055*0.029)+0.4 -> 71,313.00
A136: 1 | H136: Земельный налог (51:28:0050001:23) | BC136: 15,784,719.09 | BS136: 1.5 | CI136: 13,360.71
A137: Итого по источнику финансового обеспечения: | BC137: х | BS137: х | CI137: =SUM(CI135:CZ136) -> 84,673.71
A138: Итого: | BC138: х | BS138: х | CI138: =CI133+CI137+0.01 -> 2,759,687.01
A140: 2.3.2. Расчет (обоснование) расходов на уплату иных налогов (включаемых в состав расходов) в бюджеты бюджетной системы Российской Федерации, а также государственной пошлины
A142: Код видов расходов | W142: 852
A144: № п/п | H144: Наименование показателя | BC144: Налоговая база, л/с | BS144: Ставка налога, руб. | CI144: Сумма исчисленного налога, подлежащего уплате, руб. (гр. 3 x гр. 4 / 100)
A145: 1 | H145: 2 | BC145: 3 | BS145: 4 | CI145: 5
A146: Источник финансового обеспечения: 4
A147: 1 | H147: Транспортный налог Легковой автомобиль ВАЗ 21140, 2006 г.в. | BC147: 77.5 | BS147: 12 | CI147: 930.00
A148: 2 | H148: Транспортный налог Грузовой автомобиль ГАЗ -2705, 2006 г.в. | BC148: 140 | BS148: 32 | CI148: 4,480.00
A149: Итого по источнику финансового обеспечения: | BC149: х | BS149: х | CI149: =SUM(CI147:CI148) -> 5,410.00
A151: 2.3.3. Расчет (обоснование) расходов на уплату штрафов (в том числе административных), пеней, иных платежей
A153: Код видов расходов | W153: 853
A155: № п/п | H155: Наименование показателя | BC155: Налоговая база, руб. | BS155: Ставка налога, % | CI155: Сумма исчисленного налога, подлежащего уплате, руб. (гр. 3 x гр. 4 / 100)
A156: 1 | H156: 2 | BC156: 3 | BS156: 4 | CI156: 5
A157: Источник финансового обеспечения: 2
A158: 1 | H158: Штрафы, пени за несвоевременную уплату налогов, сборов, страховых взносов | CI158: 25.76
A159: 1 | H159: Штрафы за нарушение законодательства о закупках и нарушение условий контрактов (договоров) | CI159: 3,410.56
A160: 1 | H160: Штрафные санкции, пени | CI160: 5,750.00
A161: 2 | H161: Иные выплаты текущего характера физическим лицам | CI161: 2,260.32
A162: Итого по источнику финансового обеспечения: | BC162: х | BS162: х | CI162: =SUM(CI158:CI161) -> 11,446.64
A164: 2.4. Расчет (обоснование) расходов на безвозмездные перечисления организациям
A166: Код видов расходов
A168: № п/п | H168: Наименование показателя | BC168: Размер одной выплаты, руб. | BS168: Количество выплат в год | CI168: Общая сумма выплат, руб. (гр. 3 x гр. 4)
A169: 1 | H169: 2 | BC169: 3 | BS169: 4 | CI169: 5
A170: Источник финансового обеспечения: ____________________________________________________
A172: Итого по источнику финансового обеспечения: | BC172: х | BS172: х
A173: Источник финансового обеспечения: ____________________________________________________
A175: Итого по источнику финансового обеспечения: | BC175: х | BS175: х
A176: Итого: | BC176: х | BS176: х
A178: 2.5. Расчет (обоснование) прочих расходов (кроме расходов на закупку товаров, работ, услуг)
A180: Код видов расходов | W180: 340
A182: № п/п | H182: Наименование показателя | BC182: Размер одной выплаты, руб. | BS182: Среднегодовое количество стипендиатов (в мес.) | CI182: Общая сумма выплат, руб. (гр. 3 x гр. 4)
A183: 1 | H183: 2 | BC183: 3 | BS183: 4 | CI183: 5
A184: Источник финансового обеспечения: 5____________________________________________________
A185: 1 | H185: Стипендия обучающимся (академическая) | BC185: 1,367.00 | BS185: 192 | CI185: 3,149,568.00
A186: 2 | H186: Стипендия обучающимся (социальная) | BC186: 2,051.00 | BS186: 70 | CI186: 1,722,840.00
A187: 3 | H187: Стипендия обучающимся (именная) | BC187: 10,000.00 | BS187: 8 | CI187: 960,000.00
A188: 4 | H188: Повышенные стипендии за особые успехи в учебной и научной деятельности | CI188: 314,992.00
A189: Итого по источнику финансового обеспечения: | BC189: х | BS189: х | CI189: =SUM(CI185:CZ188) -> 6,147,400.00
A190: Источник финансового обеспечения: 2____________________________________________________
A191: 1 | H191: Стипендия Правительства РФ | BC191: 5,600.00 | BS191: 6 | CI191: 33,600.00
A192: Итого по источнику финансового обеспечения: | BC192: х | BS192: х | CI192: =SUM(CI191:CI191) -> 33,600.00
A193: Итого: | BC193: х | BS193: х | CI193: =CI189+CI192 -> 6,181,000.00
A195: Код видов расходов
A197: № п/п | H197: Наименование показателя | BC197: Размер одной выплаты, руб. | BS197: Среднегодовое получателей | CI197: Общая сумма выплат, руб. (гр. 3 x гр. 4)
A198: 1 | H198: 2 | BC198: 3 | BS198: 4 | CI198: 5
A199: Источник финансового обеспечения: 2
A200: 1
A201: Итого по источнику финансового обеспечения: | BC201: х | BS201: х | CI201: =SUM(CI200:CI200) -> 0.00
A203: 2.6. Расчет (обоснование) расходов на закупку товаров, работ, услуг
A205: 2.6.1. Расчет (обоснование) расходов на оплату услуг связи
A207: Код видов расходов | W207: 244
A209: № п/п | H209: Наименование расходов | AO209: Количество номеров | BE209: Количество платежей в год | BU209: Стоимость за единицу, руб. | CK209: Сумма, руб. (гр. 3 x гр. 4 x гр. 5)
A210: 1 | H210: 2 | AO210: 3 | BE210: 4 | BU210: 5 | CK210: 6
A211: Источник финансового обеспечения: 4
A212: 1 | H212: Услуги связи по передаче данных | AO212: 1 | BE212: 1 | BU212: 2,040.00 | CK212: 2,040.00
A213: 2 | H213: Предоставление абонентской линии | AO213: 6 | BE213: 12
A214: 3 | H214: Выделенный доступ в сети интернет | AO214: 12 | BE214: 12 | BU214: 5,500.00 | CK214: 66,000.00
A215: 4 | H215: Услуги почтовой свзи (кол-во отправлений) | AO215: 402 | CK215: 11,585.40
A216: 5 | H216: Услуги телефонной связи (местной, Внутризоновой, междугородней телефонной связи) | AO216: 4392+6251+424 | BE216: 12 | CK216: 50,374.60
A217: Итого по источнику финансового обеспечения: | AO217: х | BE217: х | BU217: х | CK217: =SUM(CK212:CK216) -> 130,000.00
A218: Источник финансового обеспечения: 2
A219: 1 | H219: Услуги почтовой свзи (кол-во отправлений)
A220: Итого по источнику финансового обеспечения: | AO220: х | BE220: х
A221: Итого: | AO221: х | BE221: х | BU221: х | CK221: =CK217+CK220 -> 130,000.00
A223: 2.6.2. Расчет (обоснование) расходов на оплату транспортных услуг
A225: Код видов расходов | W225: 244
A227: № п/п | H227: Наименование расходов | BC227: Количество услуг перевозки | BS227: Цена услуги перевозки, руб. | CI227: Сумма, руб. (гр. 3 x гр. 4)
A228: 1 | H228: 2 | BC228: 3 | BS228: 4 | CI228: 5
A229: Источник финансового обеспечения: 4
A230: 1 | H230: Найм транспортных средств | BC230: 1 | BS230: 15,000.00 | CI230: 15,000.00
A231: 2 | H231: Доставка грузов | BC231: 1 | BS231: 10,000.00 | CI231: 10,000.00
A232: Итого по источнику финансового обеспечения: | BC232: х | BS232: х | CI232: =SUM(CI230:CI231) -> 25,000.00
A233: Источник финансового обеспечения: 2
A235: Итого по источнику финансового обеспечения: | BC235: х | BS235: х
A236: Итого: | BC236: х | BS236: х
A238: 2.6.3. Расчет (обоснование) расходов на оплату коммунальных услуг
A240: Код видов расходов | W240: 244
A242: № п/п | H242: Наименование показателя | AO242: Размер потребления ресурсов | BE242: Тариф (с учетом НДС), руб. | BU242: Индексация, % | CK242: Сумма, руб. (гр. 4 x гр. 3 x гр. 5)
A243: 1 | H243: 2 | AO243: 3 | BE243: 4 | BU243: 5 | CK243: 6
A244: Источник финансового обеспечения: 4
A245: 1 | H245: Водоснабжение (питьевая вода) (м3) | AO245: 1990 | CK245: 100,555.28
A246: 2 | H246: Водоотведение (м3) | AO246: 2811 | CK246: 307,000.00
A247: 3 | H247: Негативное воздействие | AO247: 1405,5 | CK247: 90,000.00
A248: 4 | H248: Вывоз ТКО (услугами регионального оператора) | AO248: 167,85 | BE248: 970,96 | CK248: 162,975.72
A249: 5 | H249: Услуги по обращению с отходами I и II классов опасности (услугами регионального оператора) | CK249: 30,000.00
A250: Итого по источнику финансового обеспечения: | AO250: х | BE250: х | BU250: х | CK250: =SUM(CK245:CK249) -> 690,531.00
A252: Источник финансового обеспечения: 2
A253: 1 | H253: Водоснабжение (питьевая вода) (м3) | CK253: 4600,84
... 127 more rows

Sheet Приложение 3
E1: Приложение № 3
E2: к Порядку составления и утверждения плана финансово-хозяйственной деятельности государственных бюджетных и автономных учреждений, в отношении которых Министерство образования и науки Мурманской области осуществляет функции и полномочия учредителя, утвержденному приказом Министерства образования и науки Мурманской области от______________________ № _________
A3: Изменение показателей по поступлениям и выплатам (+,-)
A4: Наименование показателя | B4: Код строки | C4: Код по БК РФ <3>
D5: на 20__ г. текущий финансовый год | E5: на 20__ г. (1-й год планового периода) | F5: на 20__ г. (2-й год планового периода) | G5: за пределами планового периода
A6: 1 | B6: 2 | C6: 3 | D6: 4 | E6: 5 | F6: 6 | G6: 7
A7: Остаток средств на начало текущего финансового года <4> | B7: 0001 | C7: x
A8: Остаток средств на конец текущего финансового года <4> | B8: 0002 | C8: x
A9: Доходы, всего: | B9: 1000
A10: в том числе:
A12: доходы от собственности, всего | B12: 1100 | C12: 120
A13: в том числе: | B13: 1110 | C13: 120
A15: доходы от оказания услуг, работ, компенсации затрат учреждений, всего | B15: 1200 | C15: 130
A16: в том числе: | B16: 1210 | C16: 130
A17: субсидии на финансовое обеспечение выполнения государственного (муниципального) задания за счет средств бюджета публично-правового образования, создавшего учреждение
A18: субсидии на финансовое обеспечение выполнения государственного задания за счет средств бюджета Федерального фонда обязательного медицинского страхования | B18: 1220 | C18: 130
A19: поступления от оказания услуг (выполнения работ) на платной основе и от иной приносящей доход деятельности | B19: 1230 | C19: 130
A20: из них: | B20: 1231 | C20: 130
A21: государственные услуги
A22: дополнительные платные услуги | B22: 1232 | C22: 130
A23: прочие поступления | B23: 1233 | C23: 130
A24: доходы от штрафов, пеней, иных сумм принудительного изъятия, всего | B24: 1300 | C24: 140
A25: в том числе: | B25: 1310 | C25: 140
A27: безвозмездные денежные поступления, всего | B27: 1400 | C27: 150
A28: в том числе: | B28: 1410 | C28: 150
A29: целевые субсидии
A30: субсидии на осуществление капитальных вложений | B30: 1420 | C30: 150
A31: прочие доходы, всего | B31: 1500 | C31: 180
A32: в том числе:
A34: доходы от операций с активами, всего | B34: 1900
A35: в том числе:
A37: прочие поступления, всего <5> | B37: 1980 | C37: x
A38: из них:
A39: увеличение остатков денежных средств за счет возврата дебиторской задолженности прошлых лет | B39: 1981 | C39: 510 | G39: x
A41: Расходы, всего | B41: 2000 | C41: x
A42: в том числе: | B42: 2100 | C42: x | G42: x
A43: на выплаты персоналу, всего
A44: в том числе: | B44: 2110 | C44: 111 | G44: x
A45: оплата труда
A46: прочие выплаты персоналу, в том числе компенсационного характера | B46: 2120 | C46: 112 | G46: x
A47: иные выплаты, за исключением фонда оплаты труда учреждения, для выполнения отдельных полномочий | B47: 2130 | C47: 113 | G47: x
A48: взносы по обязательному социальному страхованию на выплаты по оплате труда работников и иные выплаты работникам учреждений, всего | B48: 2140 | C48: 119 | G48: x
A49: в том числе: | B49: 2141 | C49: 119 | G49: x
A50: на выплаты по оплате труда
A51: на иные выплаты работникам | B51: 2142 | C51: 119 | G51: x
A52: денежное довольствие военнослужащих и сотрудников, имеющих специальные звания | B52: 2150 | C52: 131 | G52: x
A53: расходы на выплаты военнослужащим и сотрудникам, имеющим специальные звания, зависящие от размера денежного довольствия | B53: 2160 | C53: 133
A54: иные выплаты военнослужащим и сотрудникам, имеющим специальные звания | B54: 2170 | C54: 134 | G54: x
A55: страховые взносы на обязательное социальное страхование в части выплат персоналу, подлежащих обложению страховыми взносами | B55: 2180 | C55: 139 | G55: x
A56: в том числе: | B56: 2181 | C56: 139 | G56: x
A57: на оплату труда стажеров
A58: социальные и иные выплаты населению, всего | B58: 2200 | C58: 300 | G58: x
A59: в том числе: | B59: 2210 | C59: 320 | G59: x
A60: социальные выплаты гражданам, кроме публичных нормативных социальных выплат
A61: из них: | B61: 2211 | C61: 321 | G61: x
A62: пособия, компенсации и иные социальные выплаты гражданам, кроме публичных нормативных обязательств
A63: приобретение товаров, работ, услуг в пользу граждан в целях их социального обеспечения | B63: 2212 | C63: 323 | G63: x
A64: выплата стипендий, осуществление иных расходов на социальную поддержку обучающихся за счет средств стипендиального фонда | B64: 2220 | C64: 340 | G64: x
A65: на премирование физических лиц за достижения в области культуры, искусства, образования, науки и техники, а также на предоставление грантов с целью поддержки проектов в области науки, культуры и искусства | B65: 2230 | C65: 350 | G65: x
A66: иные выплаты населению | B66: 2240 | C66: 360 | G66: x
A67: уплата налогов, сборов и иных платежей, всего | B67: 2300 | C67: 850 | G67: x
A68: в том числе: | B68: 2310 | C68: 851 | G68: x
A69: налог на имущество организаций и земельный налог
A70: иные налоги (включаемые в состав расходов) в бюджеты бюджетной системы Российской Федерации, а также государственная пошлина | B70: 2320 | C70: 852 | G70: x
A71: уплата штрафов (в том числе административных), пеней, иных платежей | B71: 2330 | C71: 853 | G71: x
A72: безвозмездные перечисления организациям и физическим лицам, всего | B72: 2400 | C72: x | G72: x
A73: из них: | B73: 2410 | C73: 613 | G73: x
A74: гранты, предоставляемые бюджетным учреждениям
A75: гранты, предоставляемые автономным учреждениям | B75: 2420 | C75: 623
A76: гранты, предоставляемые иным некоммерческим организациям (за исключением бюджетных и автомомных учреждений) | B76: 2430 | C76: 634
A77: гранты, предоставляемые другим организациям и физическим лицам | B77: 2440 | C77: 810
A78: взносы в международные организации | B78: 2450 | C78: 862
A79: платежи в целях обеспечения реализации соглашений с правительствами иностранных государств и международными организациями | B79: 2460 | C79: 863 | G79: x
A80: прочие выплаты (кроме выплат на закупку товаров, работ, услуг) | B80: 2500 | C80: x | G80: x
A81: исполнение судебных актов Российской Федерации и мировых соглашений по возмещению вреда, причиненного в результате деятельности учреждения | B81: 2520 | C81: 831 | G81: x
A82: расходы на закупку товаров, работ, услуг, всего <6> | B82: 2600 | C82: x
A83: в том числе: | B83: 2610 | C83: 241
A84: закупку научно-исследовательских и опытно-конструкторских работ
A85: закупку товаров, работ, услуг в целях капитального ремонта государственного (муниципального) имущества | B85: 2630 | C85: 243
A86: прочую закупку товаров, работ и услуг, всего | B86: 2640 | C86: 244
A87: в том числе: | B87: 2641 | C87: 244
A88: услуги связи
A89: транспортные расходы | B89: 2642 | C89: 244
A90: коммунальные услуги | B90: 2643 | C90: 244
A91: арендная плата за пользование имуществом | B91: 2644 | C91: 244
A92: работы, услуги по содержанию имущества, всего | B92: 2645 | C92: 244
A93: в том числе:
A94: текущий ремонт движимого имущества
A95: текущий ремонт недвижимого имущества
A96: прочие работы, услуги, всего | B96: 2646 | C96: 244
A97: в том числе:
A98: организация питания
A99: увеличение стоимости основных средств | B99: 2647 | C99: 244
A100: увеличение стоимости материальных запасов, всего | B100: 2648 | C100: 244
A101: в том числе:
A102: медикаменты и перевязочные средства
A103: горюче-смазочные материалы
A104: продукты питания
A105: мягкий инвентарь
A106: закупку товаров, работ, услуг в целях создания, развития, эксплуатации и вывода из эксплуатации государственных информационных систем | B106: 2650 | C106: 246
A107: закупку энергетических ресурсов | B107: 2660 | C107: 247
A108: капитальные вложения в объекты государственной (муниципальной) собственности, всего | B108: 2700 | C108: 400
A109: в том числе: | B109: 2710 | C109: 406
A110: приобретение объектов недвижимого имущества государственными (муниципальными) учреждениями
A111: строительство (реконструкция) объектов недвижимого имущества государственными (муниципальными) учреждениями | B111: 2720 | C111: 407
A112: специальные расходы | B112: 2800 | C112: 880
A113: Выплаты, уменьшающие доход, всего <7> | B113: 3000 | C113: 100 | G113: x
A114: в том числе: | B114: 3010 | G114: x
A115: налог на прибыль
A116: налог на добавленную стоимость | B116: 3020 | G116: x
A117: прочие налоги, уменьшающие доход | B117: 3030 | G117: x
A118: Прочие выплаты, всего <8> | B118: 4000 | C118: x | G118: x
A119: из них: | B119: 4010 | C119: 610 | G119: x
A120: возврат в бюджет средств субсидии
